bitfinex-derivatives/quotes_SOLF0:USTF0_20251101
["timestamp","ask_amount","ask_price","bid_price","bid_amount"]
[1761999325596,2.7,186.35,186.29,2.7]
[1761999326697,1.82341124,186.38,186.29,2.7]
[1761999326698,2.7,186.33,186.29,2.7]
[1761999329203,2.7,186.33,186.29,78.5]
[1761999329495,2.7,186.33,186.26,2.94]
[1761999329703,2.7,186.33,186.27,35.8]
[1761999330296,2.7,186.33,186.27,38.74]
[1761999330506,2.7,186.33,186.28,2.94]
[1761999334804,2.7,186.33,186.26,3.87417803]
[1761999335907,2.7,186.33,186.27,2.94]
[1761999341409,2.7,186.33,186.26,0.93417803]
[1761999341804,2.7,186.33,186.27,2.94]
[1761999343713,2.7,186.33,186.29,4.76341124]
[1761999348625,2.7,186.33,186.29,2.94]
[1761999355615,2.7,186.33,186.26,5.66758927]
[1761999356012,2.7,186.33,186.27,2.91]
[1761999356208,7.29847685,186.32,186.27,2.91]
[1761999356408,2.92,186.32,186.27,2.91]
[1761999357120,2.92,186.43,186.27,2.91]
[1761999357322,2.92,186.39,186.3,2.91]
[1761999357620,2.92,186.37,186.3,2.91]
[1761999357915,2.92,186.35,186.3,2.91]
[1761999358117,2.92,186.33,186.3,2.91]
[1761999358316,4.38139915,186.32,186.3,2.91]
[1761999358518,2.92,186.33,186.3,2.91]
[1761999358716,4.38411845,186.32,186.3,2.91]
[1761999358904,2.92,186.33,186.3,2.91]
[1761999359109,4.38753858,186.32,186.3,2.91]
[1761999359406,1.82341124,186.4,186.3,2.91]
[1761999359717,2.92,186.36,186.3,2.91]
[1761999359917,7.30737465,186.35,186.3,2.91]
[1761999360116,4.38737465,186.34,186.3,2.91]
[1761999360325,4.38737465,186.33,186.3,2.91]
[1761999360511,2.92,186.35,186.3,2.91]
[1761999360810,4.38892073,186.34,186.3,2.91]
[1761999361118,4.38892073,186.33,186.3,2.91]
[1761999361321,2.92,186.35,186.3,2.91]
[1761999361519,4.39152156,186.34,186.3,2.91]
[1761999361718,4.39152156,186.33,186.3,2.91]
[1761999361921,2.92,186.43,186.31,2.91]
[1761999362125,2.92,186.41,186.34,2.91]
[1761999362424,4.39100194,186.4,186.34,2.91]
[1761999362610,4.39100194,186.39,186.34,2.91]
[1761999362817,4.39100194,186.38,186.34,2.91]
[1761999363017,4.39100194,186.37,186.34,2.91]
[1761999363217,4.39100194,186.36,186.34,2.91]
[1761999363419,4.39100194,186.35,186.34,2.91]
[1761999363623,2.92,186.43,186.34,2.91]
[1761999363924,7.31421094,186.42,186.34,2.91]
[1761999364113,4.39421094,186.41,186.34,2.91]
[1761999364310,4.39421094,186.4,186.34,2.91]
[1761999364513,4.39421094,186.39,186.34,2.91]
[1761999364713,4.39421094,186.38,186.34,2.91]
[1761999364923,4.39421094,186.37,186.34,2.91]
[1761999365125,4.39421094,186.36,186.34,2.91]
[1761999365425,2.92,186.42,186.34,2.91]
[1761999365624,4.39416819,186.41,186.34,2.91]
[1761999365825,4.39416819,186.4,186.34,2.91]
[1761999366123,4.39416819,186.39,186.34,2.91]
[1761999366429,2.92,186.45,186.36,2.91]
[1761999366618,7.31258527,186.44,186.36,2.91]
[1761999366817,4.39258527,186.43,186.36,2.91]
[1761999367018,4.39258527,186.42,186.36,2.91]
[1761999367218,4.39258527,186.41,186.36,2.91]
[1761999367523,2.92,186.44,186.36,2.91]
[1761999367524,4.39258527,186.4,186.36,2.91]
[1761999367723,4.39258527,186.39,186.36,2.91]
[1761999367924,2.92,186.44,186.36,2.91]
[1761999368125,4.3909908,186.43,186.36,2.91]
[1761999368326,4.3909908,186.42,186.36,2.91]
[1761999368628,2.92,186.44,186.36,2.91]
[1761999368629,4.3909908,186.41,186.36,2.91]
[1761999368825,4.3909908,186.4,186.36,2.91]
[1761999369025,2.92,186.44,186.36,2.91]
[1761999369228,4.38915971,186.43,186.36,2.91]
[1761999369428,4.38915971,186.42,186.36,2.91]
[1761999369627,4.38915971,186.41,186.36,2.91]
[1761999369827,2.92,186.44,186.36,2.91]
[1761999370032,4.38738695,186.43,186.36,2.91]
[1761999370332,4.38738695,186.42,186.36,2.91]
[1761999370535,4.38738695,186.41,186.36,2.91]
[1761999370735,2.92,186.47,186.36,2.91]
[1761999370920,4.38566536,186.46,186.37,2.91]
[1761999371118,4.38566536,186.45,186.37,2.91]
[1761999371329,4.38566536,186.44,186.37,2.91]
[1761999371531,4.38566536,186.43,186.37,2.91]
[1761999371827,2.92,186.47,186.37,2.91]
[1761999372032,8.51336645,186.46,186.37,2.91]
[1761999372234,8.51336645,186.45,186.37,2.91]
[1761999372433,4.38321561,186.44,186.37,2.91]
[1761999372732,4.38321561,186.43,186.37,2.91]
[1761999372932,2.92,186.45,186.37,2.91]
[1761999373233,2.92,186.43,186.37,2.91]
[1761999374333,2.92,186.43,186.37,7.87811366]
[1761999374736,2.92,186.43,186.38,2.91]
[1761999376034,2.92,186.47,186.38,2.91]
[1761999376236,2.92,186.47,186.39,2.81]
[1761999376237,4.37683056,186.46,186.39,2.81]
[1761999376437,2.92,186.47,186.39,2.81]
[1761999376735,4.37550101,186.46,186.39,2.81]
[1761999376937,2.92,186.47,186.39,2.81]
[1761999377233,4.37550137,186.46,186.39,2.81]
[1761999377429,2.67,186.44,186.39,2.81]
[1761999379936,2.67,186.47,186.39,2.81]
[1761999380130,2.67,186.45,186.39,2.81]
[1761999383337,2.67,186.45,186.39,29.61]
[1761999383740,2.67,186.45,186.39,2.81]
[1761999390446,2.71,186.43,186.36,2.68]
[1761999393344,2.85272488,186.45,186.36,2.68]
[1761999393345,7.08340522,186.42,186.36,2.68]
[1761999393537,2.71,186.42,186.36,2.68]
[1761999398252,4.37924227,186.41,186.36,2.68]
[1761999398449,2.71,186.42,186.36,2.68]
[1761999398746,4.37924191,186.41,186.36,2.68]
[1761999398942,2.71,186.42,186.36,2.68]
[1761999399145,2.71,186.42,186.38,2.68]
[1761999399348,2.71,186.47,186.38,2.68]
[1761999399648,2.71,186.45,186.38,2.68]
[1761999399947,2.71,186.43,186.38,2.68]
[1761999400147,7.09052741,186.42,186.38,2.68]
[1761999400450,2.71,186.42,186.38,2.68]
[1761999401345,2.71,186.42,186.38,7.64811366]
[1761999401748,2.71,186.42,186.39,2.68]
[1761999401944,2.85272488,186.49,186.39,2.68]
[1761999402145,2.71,186.47,186.39,2.68]
[1761999402348,8.54229062,186.46,186.4,2.68]
[1761999402552,2.71,186.48,186.37,9.52759916]
[1761999402553,4.38450264,186.45,186.42,2.68]
[1761999402752,4.38450264,186.44,186.42,2.68]
[1761999402954,2.71,186.48,186.43,2.68]
[1761999403148,8.54445756,186.47,186.43,2.68]
[1761999403349,8.54445756,186.46,186.43,2.68]
[1761999403648,2.71,186.51,186.45,2.68]
[1761999403951,11.24341486,186.5,186.45,2.68]
[1761999404157,11.24341486,186.49,186.45,2.68]
[1761999404348,8.53341486,186.48,186.45,2.68]
[1761999404650,8.53341486,186.47,186.45,2.68]
[1761999404852,4.37349179,186.46,186.45,2.68]
[1761999408149,2.94,186.52,186.46,2.73]
[1761999408357,2.94,186.5,186.46,2.73]
[1761999408656,8.53743846,186.49,186.46,2.73]
[1761999408851,8.53743846,186.48,186.46,2.73]
[1761999409050,4.37565434,186.47,186.46,2.73]
[1761999410452,2.94,186.5,186.47,2.73]
[1761999410750,8.53631603,186.49,186.47,2.73]
[1761999410952,4.37526593,186.48,186.47,2.73]
[1761999414658,2.94,186.5,186.47,2.73]
[1761999414958,4.37238452,186.49,186.47,2.73]
[1761999415159,2.94,186.53,186.47,7.69811366]
[1761999415361,11.46845012,186.52,186.47,2.73]
[1761999415567,11.46845012,186.51,186.47,2.73]
[1761999415862,4.3714162,186.5,186.47,2.73]
[1761999416061,2.94,186.54,186.47,2.73]
[1761999416259,2.94,186.52,186.48,2.73]
[1761999416463,8.52829944,186.51,186.48,2.73]
[1761999416659,4.37141585,186.5,186.48,2.73]
[1761999416965,2.94,186.51,186.48,2.73]
[1761999417165,4.37033025,186.5,186.48,2.73]
[1761999417463,2.94,186.51,186.48,2.73]
[1761999417657,2.94,186.51,186.49,75.76]
[1761999421660,7.30700388,186.5,186.49,75.76]
[1761999423571,4.36700388,186.5,186.49,75.76]
[1761999423763,2.94,186.52,186.49,78.49]
[1761999423966,4.36593273,186.51,186.49,78.49]
[1761999424270,2.94,186.52,186.49,78.49]
[1761999424468,4.36544215,186.51,186.49,78.49]
[1761999424769,2.94,186.52,186.49,78.49]
[1761999424968,4.36538704,186.51,186.49,78.49]
[1761999425171,2.94,186.52,186.49,78.49]
[1761999425471,4.36513352,186.51,186.49,78.49]
[1761999425667,2.94,186.52,186.49,78.49]
[1761999425863,7.30482368,186.51,186.5,75.72]
[1761999426271,2.94,186.51,186.5,75.72]
[1761999428270,2.94,186.51,186.49,2.73]
[1761999428477,2.94,186.51,186.5,32.42]
[1761999428675,7.30379276,186.51,186.5,32.42]
[1761999429277,2.94,186.51,186.5,32.42]
[1761999432175,2.94,186.51,186.49,2.73]
[1761999434582,2.94,186.55,186.49,2.73]
[1761999434778,2.94,186.53,186.49,2.73]
[1761999435788,7.30230726,186.52,186.49,2.73]
[1761999435973,2.94,186.52,186.49,2.73]
[1761999436782,2.76,186.55,186.49,2.73]
[1761999437084,11.31318146,186.54,186.49,2.73]
[1761999437283,4.36291454,186.53,186.49,2.73]
[1761999437484,2.76,186.54,186.49,2.73]
[1761999437680,4.36361524,186.53,186.49,2.73]
[1761999437986,2.76,186.56,186.49,2.73]
[1761999438282,11.31455267,186.55,186.49,2.73]
[1761999438479,8.55455267,186.54,186.51,2.88]
[1761999438680,8.55455267,186.53,186.51,2.88]
[1761999438880,2.76,186.55,186.51,2.88]
[1761999439084,8.55620316,186.54,186.51,2.88]
[1761999439385,8.55620316,186.53,186.52,2.88]
[1761999441382,11.28620316,186.53,186.52,2.88]
[1761999441791,11.28620316,186.53,186.51,2.67]
[1761999442087,2.73,186.53,186.51,2.67]
[1761999442280,4.36936547,186.52,186.51,2.67]
[1761999442785,2.73,186.51,186.5,75.66]
[1761999443088,2.73,186.51,186.5,75.64]
[1761999443386,2.73,186.54,186.5,78.31]
[1761999443685,11.29936271,186.53,186.5,78.31]
[1761999443987,8.56936271,186.52,186.5,78.31]
[1761999444183,2.73,186.53,186.5,83.26922347]
[1761999444387,8.57241792,186.52,186.5,83.26922347]
[1761999444688,4.37278028,186.51,186.5,83.26922347]
[1761999445487,4.37278028,186.51,186.5,83.24922347]
[1761999446382,8.57644419,186.51,186.5,83.24922347]
[1761999446682,8.57644419,186.51,186.5,78.29]
[1761999447587,4.37278028,186.51,186.5,84.96487428]
[1761999448383,8.57958016,186.51,186.5,84.96487428]
[1761999448888,4.37278028,186.51,186.5,84.96487428]
[1761999449387,8.57993586,186.51,186.5,84.96487428]
[1761999450389,4.37278028,186.51,186.5,78.29]
[1761999451593,2.73,186.56,186.51,2.67]
[1761999451792,8.58896155,186.55,186.54,2.67]
[1761999451994,8.58896155,186.55,186.54,78.27]
[1761999452890,11.31896155,186.55,186.54,75.6]
[1761999453086,11.31896155,186.55,186.54,80.57534671]
[1761999453895,11.31896155,186.55,186.53,4.97534671]
[1761999453896,2.73,186.54,186.53,4.97534671]
[1761999454097,2.73,186.53,186.52,41.17534671]
[1761999454285,11.31896155,186.53,186.52,36.2]
[1761999455294,11.31896155,186.53,186.52,41.17677893]
[1761999455800,11.31896155,186.53,186.52,36.2]
[1761999457390,2.73,186.52,186.51,4.97677893]
[1761999457590,11.31896155,186.52,186.51,4.97677893]
[1761999458797,11.31896155,186.52,186.5,4.97677893]
[1761999459004,11.31896155,186.51,186.5,4.97677893]
[1761999461391,11.31896155,186.51,186.49,4.97677893]
[1761999461392,2.73,186.5,186.49,4.97677893]
[1761999461590,11.31896155,186.5,186.49,4.97677893]
[1761999461991,2.73,186.49,186.48,4.97677893]
[1761999462197,11.31896155,186.49,186.48,4.97677893]
[1761999463290,13.14182435,186.49,186.48,4.97677893]
[1761999464189,13.14182435,186.49,186.47,4.97677893]
[1761999464390,11.31896155,186.48,186.47,4.97677893]
[1761999465794,11.34581546,186.48,186.47,4.97677893]
[1761999467498,11.34581546,186.48,186.45,9.32379561]
[1761999467703,8.61581546,186.47,186.45,9.32379561]
[1761999467902,4.3813516,186.46,186.45,9.32379561]
[1761999473409,4.3813516,186.46,186.45,2.69]
[1761999476298,4.3813516,186.46,186.45,9.32379561]
[1761999476714,2.67,186.5,186.46,2.69]
[1761999477006,11.27680585,186.49,186.48,4.97107344]
[1761999478107,11.27669877,186.49,186.48,4.97107344]
[1761999478515,11.27669877,186.49,186.48,7.66107344]
[1761999478704,8.60669877,186.49,186.48,83.24107344]
[1761999480914,2.67,186.55,186.49,2.69]
[1761999481114,11.27495479,186.54,186.51,7.65851758]
[1761999481417,8.60495479,186.53,186.52,75.6]
[1761999482314,8.60495479,186.53,186.52,83.25851758]
[1761999485617,4.37658395,186.53,186.52,78.29]
[1761999486220,2.67,186.6,186.53,2.69]
[1761999486419,2.67,186.58,186.55,2.69]
[1761999486717,11.26977369,186.57,186.55,78.29]
[1761999486919,8.59977369,186.56,186.55,78.29]
[1761999499429,4.22542502,186.56,186.55,78.29]
[1761999500523,4.22542502,186.56,186.55,78.23]
[1761999501228,2.65,186.6,186.56,2.76]
[1761999501525,2.92,186.58,186.56,2.76]
[1761999501725,8.70950665,186.57,186.56,2.76]
[1761999502526,4.36554198,186.57,186.56,2.76]
[1761999502726,8.70887147,186.57,186.56,2.76]
[1761999507822,4.34332949,186.57,186.56,2.76]
[1761999508030,8.70660322,186.57,186.56,2.76]
[1761999510328,4.34332949,186.57,186.56,2.76]
[1761999511628,7.26332949,186.57,186.56,2.76]
[1761999511830,11.62755266,186.57,186.56,2.76]
[1761999512232,2.92,186.56,186.54,7.71080722]
[1761999512422,2.92,186.56,186.55,38.08]
[1761999512624,2.92,186.56,186.55,40.84]
[1761999512824,2.92,186.61,186.55,40.84]
[1761999513028,2.92,186.59,186.55,40.84]
[1761999513326,16.13902384,186.62,186.55,40.84]
[1761999513327,11.62791715,186.58,186.55,40.84]
[1761999513530,11.62791715,186.57,186.55,40.84]
[1761999513733,2.92,186.57,186.55,40.84]
[1761999515034,16.18319343,186.62,186.56,2.76]
[1761999515035,2.92,186.61,186.56,2.76]
[1761999515332,2.92,186.59,186.56,2.76]
[1761999515633,11.62952424,186.58,186.56,2.76]
[1761999515828,8.70952424,186.57,186.56,2.76]
[1761999516534,11.62952424,186.57,186.56,2.76]
[1761999520236,11.62952424,186.57,186.56,7.71080722]
[1761999520634,11.62952424,186.57,186.56,4.95080722]
[1761999521535,11.62952424,186.57,186.56,7.71080722]
[1761999523240,11.62952424,186.57,186.56,2.76]
[1761999524635,11.62952424,186.57,186.55,47.47379561]
[1761999524942,8.70952424,186.56,186.55,47.47379561]
[1761999529244,11.50952424,186.56,186.55,44.71379561]
[1761999530747,11.50952424,186.56,186.55,47.42379561]
[1761999531835,11.50952424,186.56,186.55,44.71379561]
[1761999533242,11.50952424,186.56,186.55,38.08]
[1761999535251,2.8,186.55,186.53,9.34464389]
[1761999535440,8.70952424,186.54,186.53,9.34464389]
[1761999536041,8.70952424,186.54,186.53,2.71]
[1761999538648,8.70952424,186.54,186.53,7.68752456]
[1761999539544,8.70952424,186.54,186.53,2.71]
[1761999543054,8.70952424,186.54,186.53,9.34464389]
[1761999543249,8.70952424,186.54,186.53,2.71]
[1761999545251,4.36563499,186.54,186.53,2.71]
[1761999545459,4.36563499,186.54,186.53,4.53086428]
[1761999546258,4.36563499,186.54,186.53,2.71]
[1761999546558,4.36563499,186.54,186.53,4.53086428]
[1761999548065,4.36563499,186.54,186.53,14.54317571]
[1761999550262,4.36563499,186.54,186.53,90.06317571]
[1761999551965,4.36563499,186.54,186.53,84.86413689]
[1761999553251,4.36563499,186.54,186.53,78.23]
[1761999562765,7.21563499,186.54,186.53,75.52]
[1761999562963,2.85,186.53,186.52,6.63553063]
[1761999563267,2.85,186.52,186.51,75.52]
[1761999563459,11.49678739,186.52,186.51,75.52]
[1761999565371,11.49678739,186.52,186.5,9.41553063]
[1761999565571,2.85,186.52,186.51,75.52]
[1761999565759,11.99244263,186.52,186.51,75.52]
[1761999565960,2.85,186.51,186.5,6.63553063]
[1761999566264,7.71236643,186.51,186.5,75.52]
[1761999566872,4.86236643,186.51,186.5,78.3]
[1761999567369,4.86236643,186.51,186.5,9.41553063]
[1761999567572,4.86236643,186.51,186.5,78.3]
[1761999568270,4.86236643,186.51,186.5,80.12086428]
[1761999569864,4.86055857,186.51,186.5,75.52]
[1761999570370,4.86055857,186.51,186.5,78.27]
[1761999572669,4.86055857,186.51,186.5,88.28231143]
[1761999572858,4.86055857,186.51,186.5,89.36231143]
[1761999573064,4.86055857,186.51,186.5,88.28231143]
[1761999573267,4.86055857,186.51,186.5,89.36231143]
[1761999575069,2.81,186.57,186.5,89.36231143]
[1761999575269,11.94724454,186.56,186.55,4.96920153]
[1761999575470,11.94724454,186.56,186.55,80.48920153]
[1761999575672,11.94724454,186.56,186.55,75.52]
[1761999577974,11.94724454,186.56,186.55,80.489045]
[1761999578576,11.94724454,186.56,186.55,4.969045]
[1761999578877,2.81,186.55,186.53,62.489045]
[1761999579072,2.81,186.53,186.52,80.489045]
[1761999579271,11.94724454,186.53,186.52,80.489045]
[1761999581177,11.94724454,186.53,186.52,75.52]
[1761999584575,4.85992781,186.53,186.52,83.199045]
[1761999584773,4.85992781,186.53,186.52,78.23]
[1761999588979,4.85992781,186.53,186.52,2.71]
[1761999589179,4.85992781,186.53,186.52,78.23]
[1761999589977,4.85992781,186.53,186.52,84.85560204]
[1761999590474,4.85992781,186.53,186.52,9.33560204]
[1761999590682,4.85992781,186.53,186.52,84.85560204]
[1761999597685,4.85992781,186.53,186.52,78.23]
[1761999598086,4.85992781,186.53,186.52,2.71]
[1761999598291,4.85992781,186.53,186.52,78.23]
[1761999600687,4.86008698,186.53,186.52,75.52]
[1761999601189,4.86008698,186.53,186.52,78.23]
[1761999602485,4.86008698,186.53,186.52,2.71]
[1761999602692,7.69008698,186.53,186.52,82.15049768]
[1761999603395,7.69008698,186.53,186.52,75.52]
[1761999603593,11.86844853,186.53,186.52,75.52]
[1761999607297,4.86008698,186.53,186.52,78.23]
[1761999607800,4.86008698,186.53,186.52,84.86199381]
[1761999608906,11.86947563,186.53,186.52,75.52]
[1761999609297,2.83,186.52,186.5,9.34199381]
[1761999609495,7.69008698,186.51,186.5,6.63199381]
[1761999609902,7.69008698,186.51,186.5,78.15199381]
[1761999610705,7.69008698,186.51,186.5,6.63199381]
[1761999611804,2.83,186.5,186.49,82.15199381]
[1761999612006,2.83,186.49,186.48,3.57846504]
[1761999612204,2.83,186.48,186.43,6.63199381]
[1761999612404,2.83,186.46,186.37,6.63199381]
[1761999612608,2.83,186.44,186.38,75.56]
[1761999612800,2.83,186.42,186.38,75.56]
[1761999613001,2.83,186.4,186.38,75.56]
[1761999613200,4.86008698,186.39,186.38,75.56]
[1761999615613,7.69008698,186.39,186.38,75.56]
[1761999617811,12.13469952,186.39,186.38,75.56]
[1761999618211,2.77,186.38,186.34,3.76357656]
[1761999618409,7.60433612,186.37,186.35,75.6]
[1761999618610,2.77,186.37,186.35,75.6]
[1761999619304,2.77,186.37,186.31,5.67621129]
[1761999619508,2.77,186.37,186.32,78.43]
[1761999620717,2.77,186.37,186.33,2.86]
[1761999622222,2.77,186.37,186.32,75.6]
[1761999622719,2.93,186.35,186.32,75.6]
[1761999623214,2.93,186.35,186.3,75.62]
[1761999623807,2.93,186.35,186.3,78.48]
[1761999624120,2.93,186.35,186.31,2.86]
[1761999624820,4.99167036,186.5,186.31,2.86]
[1761999624821,2.93,186.45,186.31,2.86]
[1761999625114,2.93,186.43,186.32,2.86]
[1761999625421,2.93,186.41,186.32,2.86]
[1761999625616,2.93,186.39,186.32,2.86]
[1761999625808,9.24219903,186.38,186.32,2.86]
[1761999626013,7.74616124,186.37,186.32,2.86]
[1761999626218,2.93,186.37,186.32,2.86]
[1761999627621,2.93,186.45,186.32,2.86]
[1761999627812,2.93,186.43,186.32,2.86]
[1761999628015,2.93,186.41,186.32,2.86]
[1761999628218,12.15818603,186.4,186.32,2.86]
[1761999628522,4.80906355,186.39,186.32,2.86]
[1761999628823,4.80906355,186.38,186.35,2.86]
[1761999629013,2.93,186.4,186.35,2.86]
[1761999629215,4.80672178,186.39,186.35,2.86]
[1761999629625,7.73672178,186.39,186.35,2.86]
[1761999629819,2.93,186.38,186.35,2.86]
[1761999630221,2.93,186.38,186.31,2.86]
[1761999631225,4.80529577,186.37,186.31,2.86]
[1761999632228,2.93,186.38,186.31,2.86]
[1761999632524,4.80428164,186.37,186.31,2.86]
[1761999632826,2.93,186.38,186.31,2.86]
[1761999633026,4.80428235,186.37,186.31,2.86]
[1761999633229,2.93,186.38,186.31,2.86]
[1761999633417,4.80379341,186.37,186.31,2.86]
[1761999633619,2.93,186.38,186.31,2.86]
[1761999633819,4.80379341,186.37,186.31,2.86]
[1761999634027,2.93,186.38,186.31,2.86]
[1761999634228,4.80354997,186.37,186.31,2.86]
[1761999634530,2.93,186.38,186.31,2.86]
[1761999634729,4.80357247,186.37,186.31,2.86]
[1761999635027,2.93,186.38,186.31,2.86]
[1761999635229,4.80342254,186.37,186.35,2.77]
[1761999635526,2.8,186.4,186.35,2.77]
[1761999635726,2.84621129,186.49,186.35,2.77]
[1761999635727,12.0176664,186.39,186.35,2.77]
[1761999636026,4.80359663,186.38,186.35,2.77]
[1761999636227,4.80359663,186.37,186.35,2.77]
[1761999636427,2.8,186.39,186.35,2.77]
[1761999636730,7.60382259,186.38,186.35,2.77]
[1761999636919,4.80382259,186.37,186.35,2.77]
[1761999637121,2.8,186.38,186.35,2.77]
[1761999637321,4.80383559,186.37,186.35,2.77]
[1761999637525,2.8,186.38,186.35,2.77]
[1761999637728,4.80423293,186.37,186.35,2.77]
[1761999638027,2.8,186.38,186.35,2.77]
[1761999638228,4.80431555,186.37,186.35,2.77]
[1761999638420,2.8,186.38,186.35,2.77]
[1761999638621,4.80483079,186.37,186.35,2.77]
[1761999638823,2.8,186.38,186.35,2.77]
[1761999639024,4.80483079,186.37,186.35,2.77]
[1761999639225,4.80562096,186.36,186.35,2.77]
[1761999645138,9.28831079,186.36,186.35,2.77]
[1761999657352,9.33382426,186.36,186.35,2.77]
[1761999658751,12.20382426,186.36,186.34,2.85]
[1761999658950,9.33382426,186.35,186.32,2.85]
[1761999659143,9.33382426,186.34,186.33,5.69621129]
[1761999661756,9.33382426,186.34,186.33,2.85]
[1761999662961,12.20382426,186.34,186.32,6.63199381]
[1761999663160,2.87,186.32,186.3,9.48199381]
[1761999663459,9.33382426,186.31,186.3,85.14199381]
[1761999664559,9.33382426,186.31,186.3,78.51]
[1761999666659,9.33382426,186.31,186.3,85.16821711]
[1761999667459,9.33382426,186.31,186.3,86.99395375]
[1761999671467,9.33382426,186.31,186.29,0.93391479]
[1761999671468,12.20382426,186.31,186.29,9.41786854]
[1761999671668,2.87,186.31,186.3,75.64]
[1761999671868,9.40769642,186.31,186.3,78.49]
[1761999672666,9.40769642,186.31,186.3,80.31573664]
[1761999672879,12.27769642,186.31,186.3,75.64]
[1761999673778,12.27769642,186.31,186.3,80.63626774]
[1761999677676,12.27769642,186.31,186.29,4.99626774]
[1761999677977,2.68,186.29,186.27,4.99626774]
[1761999678176,12.08769642,186.28,186.27,4.99626774]
[1761999680295,12.08769642,186.28,186.26,83.55626774]
[1761999680473,9.40769642,186.27,186.26,83.55626774]
[1761999681282,4.87117877,186.27,186.26,83.55626774]
[1761999681483,7.81117877,186.27,186.26,80.65626774]
[1761999681882,12.29255807,186.27,186.26,75.66]
[1761999683677,2.94,186.26,186.23,9.34319449]
[1761999683875,12.29255807,186.25,186.23,85.04319449]
[1761999684083,9.35255807,186.24,186.23,85.04319449]
[1761999684274,4.87117877,186.24,186.23,85.04319449]
[1761999684684,4.87117877,186.24,186.23,87.94319449]
[1761999684990,4.87117877,186.24,186.23,89.76893113]
[1761999685286,2.94,186.28,186.24,2.9]
[1761999685487,2.94,186.26,186.24,2.9]
[1761999685783,4.85608532,186.25,186.24,2.9]
[1761999686476,2.94,186.31,186.25,2.9]
[1761999686791,2.94,186.29,186.26,78.68]
[1761999686984,12.26890728,186.28,186.26,78.68]
[1761999687184,4.85442816,186.27,186.26,78.68]
[1761999688188,7.79442816,186.27,186.26,75.78]
[1761999688889,4.85442816,186.27,186.26,75.78]
[1761999689687,7.79442816,186.27,186.26,75.78]
[1761999690389,4.85442816,186.27,186.26,78.68]
[1761999690590,4.85442816,186.27,186.26,80.50573664]
[1761999690889,2.94,186.31,186.27,2.9]
[1761999691091,12.26270097,186.3,186.28,1.82573664]
[1761999691286,2.94,186.28,186.26,75.78]
[1761999691584,2.94,186.26,186.23,14.06893113]
[1761999691794,7.79138904,186.25,186.24,75.8]
[1761999692991,4.85138904,186.25,186.24,78.46]
[1761999693388,2.83,186.29,186.24,78.46]
[1761999693695,2.83,186.27,186.24,78.46]
[1761999693893,4.85038016,186.26,186.25,1.82573664]
[1761999694091,4.85038016,186.26,186.25,4.48573664]
[1761999695689,2.83,186.3,186.26,2.66]
[1761999695891,9.31990597,186.29,186.27,80.32573664]
[1761999696094,4.84965627,186.28,186.27,80.32573664]
[1761999697798,2.83,186.33,186.27,80.32573664]
[1761999698103,2.83,186.31,186.29,1.82573664]
[1761999698291,9.31909974,186.3,186.29,4.48573664]
[1761999699197,9.31909974,186.3,186.29,1.82573664]
[1761999699604,12.14909974,186.3,186.29,1.82573664]
[1761999699799,12.14909974,186.3,186.27,77.66573664]
[1761999700000,2.83,186.28,186.27,77.66573664]